[Event "Titled Tuesday Blitz October 5 2021"]
[White "Pacheco Lugo, Alejandro Jose"]
[Black "Leitao, Rafael"]
[WhiteFideId "3903745"]
[BlackFideId "2101246"]
[WhiteElo "2125"]
[BlackElo "2609"]
[Result "0-1"]
[Round "03"]
[TimeControl "180+1"]
[Date "2021.10.05"]
[WhiteClock "0:00:07"]
[BlackClock "0:00:44"]

1. e4 {[%clk 0:03:00]}  e5 {[%clk 0:02:59]} 2. Nf3 {[%clk 0:03:01]}  Nc6 {[%clk 0:03:00]} 3. Bc4 {[%clk 0:03:01]}  Nf6 {[%clk 0:02:59]} 4. Ng5 {[%clk 0:03:00]}  d5 {[%clk 0:02:59]} 5. exd5 {[%clk 0:03:00]}  Na5 {[%clk 0:03:00]} 6. Bb5+ {[%clk 0:03:01]}  c6 {[%clk 0:03:00]} 7. dxc6 {[%clk 0:03:01]}  bxc6 {[%clk 0:03:01]} 8. Bd3 {[%clk 0:03:01]}  Nd5 {[%clk 0:03:00]} 9. Nf3 {[%clk 0:03:01]}  Bd6 {[%clk 0:02:59]} 10. O-O {[%clk 0:03:01]}  Nf4 {[%clk 0:02:58]} 11. Nc3 {[%clk 0:02:59]}  Nxd3 {[%clk 0:02:57]} 12. cxd3 {[%clk 0:03:00]}  O-O {[%clk 0:02:57]} 13. b3 {[%clk 0:02:52]}  Bg4 {[%clk 0:02:51]} 14. h3 {[%clk 0:02:46]}  Bh5 {[%clk 0:02:50]} 15. Ne4 {[%clk 0:02:46]}  Re8 {[%clk 0:02:36]} 16. Re1 {[%clk 0:02:44]}  f5 {[%clk 0:02:28]} 17. Ng3 {[%clk 0:02:21]}  Bg6 {[%clk 0:02:28]} 18. Bb2 {[%clk 0:02:18]}  e4 {[%clk 0:02:25]} 19. dxe4 {[%clk 0:02:13]}  fxe4 {[%clk 0:02:25]} 20. Nd4 {[%clk 0:02:10]}  Be5 {[%clk 0:02:12]} 21. Nge2 {[%clk 0:01:26]}  c5 {[%clk 0:02:08]} 22. b4 {[%clk 0:01:23]}  cxd4 {[%clk 0:01:39]} 23. bxa5 {[%clk 0:01:22]}  Rb8 {[%clk 0:01:40]} 24. Ba3 {[%clk 0:01:11]}  Qxa5 {[%clk 0:01:35]} 25. Bc1 {[%clk 0:00:43]}  Rf8 {[%clk 0:01:30]} 26. a4 {[%clk 0:00:35]}  e3 {[%clk 0:01:27]} 27. fxe3 {[%clk 0:00:31]}  dxe3 {[%clk 0:01:15]} 28. Ra3 {[%clk 0:00:32]}  exd2 {[%clk 0:01:02]} 29. Qxd2 {[%clk 0:00:23]}  Qxd2 {[%clk 0:00:56]} 30. Bxd2 {[%clk 0:00:23]}  Bd6 {[%clk 0:00:51]} 31. Rc3 {[%clk 0:00:19]}  Bb4 {[%clk 0:00:49]} 32. Nd4 {[%clk 0:00:14]}  Bxc3 {[%clk 0:00:49]} 33. Bxc3 {[%clk 0:00:15]}  Rfe8 {[%clk 0:00:49]} 34. Rf1 {[%clk 0:00:14]}  Be4 {[%clk 0:00:47]} 35. Nf3 {[%clk 0:00:11]}  Rf8 {[%clk 0:00:46]} 36. Bd4 {[%clk 0:00:07]}  Bxf3 {[%clk 0:00:45]} 37. gxf3 {[%clk 0:00:07]}  Rb7 {[%clk 0:00:44]} 0-1


[Site "https://www.chess.com"]

[Event "Titled Tuesday Blitz October 5 2021"]
[White "Papasimakopoulos, Alexandros"]
[Black "Jary, Sergey"]
[WhiteFideId "4244125"]
[BlackFideId "14110350"]
[WhiteElo "2352"]
[BlackElo "2260"]
[Result "1-0"]
[Round "03"]
[TimeControl "180+1"]
[Date "2021.10.05"]
[WhiteClock "0:00:33"]
[BlackClock "0:00:01"]

1. d4 {[%clk 0:02:56]}  Nf6 {[%clk 0:02:59]} 2. c4 {[%clk 0:02:56]}  g6 {[%clk 0:02:59]} 3. Nc3 {[%clk 0:02:55]}  Bg7 {[%clk 0:02:59]} 4. e4 {[%clk 0:02:55]}  d6 {[%clk 0:02:59]} 5. f3 {[%clk 0:02:55]}  O-O {[%clk 0:02:59]} 6. Nge2 {[%clk 0:02:56]}  Nc6 {[%clk 0:02:58]} 7. Be3 {[%clk 0:02:56]}  a6 {[%clk 0:02:58]} 8. Qd2 {[%clk 0:02:56]}  Rb8 {[%clk 0:02:58]} 9. Rc1 {[%clk 0:02:55]}  Bd7 {[%clk 0:02:53]} 10. Nd1 {[%clk 0:02:55]}  b5 {[%clk 0:02:47]} 11. c5 {[%clk 0:02:55]}  dxc5 {[%clk 0:02:35]} 12. Rxc5 {[%clk 0:02:56]}  e6 {[%clk 0:02:27]} 13. Qc3 {[%clk 0:02:45]}  b4 {[%clk 0:02:20]} 14. Qc1 {[%clk 0:02:42]}  Na7 {[%clk 0:01:59]} 15. Ng3 {[%clk 0:02:33]}  Nb5 {[%clk 0:01:55]} 16. Bxb5 {[%clk 0:02:27]}  Bxb5 {[%clk 0:01:55]} 17. Rxc7 {[%clk 0:02:28]}  h5 {[%clk 0:01:50]} 18. Ne2 {[%clk 0:02:23]}  h4 {[%clk 0:01:35]} 19. h3 {[%clk 0:02:22]}  Nh5 {[%clk 0:01:33]} 20. Bg5 {[%clk 0:02:07]}  Bf6 {[%clk 0:01:26]} 21. Bxf6 {[%clk 0:02:03]}  Qxf6 {[%clk 0:01:25]} 22. Qc5 {[%clk 0:01:57]}  Bxe2 {[%clk 0:01:21]} 23. Ne3 {[%clk 0:01:50]}  Bb5 {[%clk 0:01:21]} 24. Ng4 {[%clk 0:01:40]}  Qf4 {[%clk 0:01:20]} 25. Kd1 {[%clk 0:01:08]}  Rbd8 {[%clk 0:01:11]} 26. Re1 {[%clk 0:01:04]}  Rd7 {[%clk 0:00:59]} 27. Rxd7 {[%clk 0:01:04]}  Bxd7 {[%clk 0:00:59]} 28. Ne5 {[%clk 0:01:01]}  Rc8 {[%clk 0:00:57]} 29. Qxb4 {[%clk 0:00:59]}  Rc1+ {[%clk 0:00:53]} 30. Ke2 {[%clk 0:00:59]}  Ng3+ {[%clk 0:00:54]} 31. Kf2 {[%clk 0:01:00]}  Rc2+ {[%clk 0:00:36]} 32. Kg1 {[%clk 0:00:58]}  Ne2+ {[%clk 0:00:35]} 33. Kh1 {[%clk 0:00:51]}  Bb5 {[%clk 0:00:24]} 34. Qe7 {[%clk 0:00:46]}  Ng3+ {[%clk 0:00:21]} 35. Kg1 {[%clk 0:00:44]}  Rc8 {[%clk 0:00:13]} 36. Nxg6 {[%clk 0:00:41]}  Qh6 {[%clk 0:00:08]} 37. Ne5 {[%clk 0:00:38]}  Qg7 {[%clk 0:00:08]} 38. Qxh4 {[%clk 0:00:35]}  Rc2 {[%clk 0:00:07]} 39. Ng4 {[%clk 0:00:35]}  Ne2+ {[%clk 0:00:05]} 40. Kh2 {[%clk 0:00:35]}  Nf4 {[%clk 0:00:04]} 41. Rg1 {[%clk 0:00:35]}  Be8 {[%clk 0:00:03]} 42. Nf6+ {[%clk 0:00:35]}  Kf8 {[%clk 0:00:03]} 43. Qxf4 {[%clk 0:00:35]}  Rxb2 {[%clk 0:00:01]} 44. Qd6# {[%clk 0:00:33]} 1-0


[Site "https://www.chess.com"]

[Event "Titled Tuesday Blitz October 5 2021"]
[White "Pasti, Aron"]
[Black "Schmakel, Sam"]
[WhiteFideId "785857"]
[BlackFideId "2039311"]
[WhiteElo "2080"]
[BlackElo "2356"]
[Result "1-0"]
[Round "03"]
[TimeControl "180+1"]
[Date "2021.10.05"]
[WhiteClock "0:00:14"]
[BlackClock "0:01:38"]

1. e4 {[%clk 0:02:51]}  c5 {[%clk 0:02:59]} 2. Nf3 {[%clk 0:02:47]}  e6 {[%clk 0:02:59]} 3. d4 {[%clk 0:02:47]}  cxd4 {[%clk 0:02:59]} 4. Nxd4 {[%clk 0:02:48]}  Nc6 {[%clk 0:03:00]} 5. Nc3 {[%clk 0:02:47]}  Qc7 {[%clk 0:03:00]} 6. Be3 {[%clk 0:02:42]}  a6 {[%clk 0:02:58]} 7. Qf3 {[%clk 0:02:41]}  Nf6 {[%clk 0:02:54]} 8. O-O-O {[%clk 0:02:41]}  Ne5 {[%clk 0:02:54]} 9. Qg3 {[%clk 0:02:41]}  b5 {[%clk 0:02:54]} 10. f4 {[%clk 0:02:40]}  Neg4 {[%clk 0:02:54]} 11. Bg1 {[%clk 0:02:41]}  h5 {[%clk 0:02:52]} 12. e5 {[%clk 0:02:29]}  b4 {[%clk 0:02:52]} 13. Na4 {[%clk 0:02:27]}  Nd5 {[%clk 0:02:52]} 14. h3 {[%clk 0:02:25]}  Nh6 {[%clk 0:02:52]} 15. f5 {[%clk 0:02:25]}  Bb7 {[%clk 0:02:48]} 16. fxe6 {[%clk 0:02:16]}  dxe6 {[%clk 0:02:45]} 17. Bd3 {[%clk 0:02:06]}  Be7 {[%clk 0:02:29]} 18. Be3 {[%clk 0:01:08]}  h4 {[%clk 0:01:57]} 19. Qxg7 {[%clk 0:00:47]}  Rg8 {[%clk 0:01:58]} 20. Qxh6 {[%clk 0:00:40]}  Nxe3 {[%clk 0:01:57]} 21. Nxe6 {[%clk 0:00:35]}  Qc6 {[%clk 0:01:42]} 22. Qxe3 {[%clk 0:00:25]}  fxe6 {[%clk 0:01:39]} 23. Qe2 {[%clk 0:00:14]}  Qxa4 {[%clk 0:01:38]} 24. Qh5+ {[%clk 0:00:14]} 1-0


[Site "https://www.chess.com"]

[Event "Titled Tuesday Blitz October 5 2021"]
[White "Pichot, Alan"]
[Black "Jain, Naveen"]
[WhiteFideId "110973"]
[BlackFideId "5003970"]
[WhiteElo "2600"]
[BlackElo "2036"]
[Result "1-0"]
[Round "03"]
[TimeControl "180+1"]
[Date "2021.10.05"]
[WhiteClock "0:00:03"]
[BlackClock "0:00:05"]

1. d4 {[%clk 0:03:00]}  Nf6 {[%clk 0:02:59]} 2. c4 {[%clk 0:02:58]}  c5 {[%clk 0:02:58]} 3. d5 {[%clk 0:02:57]}  b5 {[%clk 0:02:58]} 4. cxb5 {[%clk 0:02:53]}  a6 {[%clk 0:02:58]} 5. b6 {[%clk 0:02:53]}  d6 {[%clk 0:02:58]} 6. Nc3 {[%clk 0:02:53]}  Nbd7 {[%clk 0:02:57]} 7. Nf3 {[%clk 0:02:53]}  g6 {[%clk 0:02:57]} 8. e4 {[%clk 0:02:50]}  Bg7 {[%clk 0:02:57]} 9. Bd3 {[%clk 0:02:50]}  O-O {[%clk 0:02:56]} 10. O-O {[%clk 0:02:51]}  Ng4 {[%clk 0:02:50]} 11. Re1 {[%clk 0:02:49]}  Nge5 {[%clk 0:02:40]} 12. Nxe5 {[%clk 0:02:45]}  Nxe5 {[%clk 0:02:40]} 13. Bf1 {[%clk 0:02:45]}  Qxb6 {[%clk 0:02:39]} 14. Rb1 {[%clk 0:02:42]}  Rb8 {[%clk 0:02:13]} 15. Bg5 {[%clk 0:02:41]}  Re8 {[%clk 0:02:08]} 16. Qd2 {[%clk 0:02:39]}  Bd7 {[%clk 0:01:57]} 17. Bh6 {[%clk 0:02:27]}  Bb5 {[%clk 0:01:52]} 18. Bxg7 {[%clk 0:02:16]}  Kxg7 {[%clk 0:01:51]} 19. f4 {[%clk 0:02:10]}  Nd7 {[%clk 0:01:43]} 20. Kh1 {[%clk 0:01:53]}  Bxf1 {[%clk 0:01:30]} 21. Rxf1 {[%clk 0:01:49]}  Qb4 {[%clk 0:01:28]} 22. Qe2 {[%clk 0:01:42]}  c4 {[%clk 0:00:55]} 23. e5 {[%clk 0:01:32]}  Nc5 {[%clk 0:00:54]} 24. f5 {[%clk 0:01:32]}  dxe5 {[%clk 0:00:23]} 25. Qxe5+ {[%clk 0:01:31]}  Kg8 {[%clk 0:00:24]} 26. fxg6 {[%clk 0:01:04]}  hxg6 {[%clk 0:00:23]} 27. Rf3 {[%clk 0:00:52]}  Nd3 {[%clk 0:00:20]} 28. Qd4 {[%clk 0:00:52]}  Qb6 {[%clk 0:00:12]} 29. Qh4 {[%clk 0:00:45]}  Kg7 {[%clk 0:00:09]} 30. Rbf1 {[%clk 0:00:44]}  f6 {[%clk 0:00:06]} 31. b3 {[%clk 0:00:30]}  Ne5 {[%clk 0:00:05]} 32. Rg3 {[%clk 0:00:25]}  Rh8 {[%clk 0:00:04]} 33. Qf4 {[%clk 0:00:19]}  cxb3 {[%clk 0:00:04]} 34. axb3 {[%clk 0:00:20]}  Qxb3 {[%clk 0:00:04]} 35. Ne4 {[%clk 0:00:19]}  Qc4 {[%clk 0:00:02]} 36. h3 {[%clk 0:00:12]}  Rb4 {[%clk 0:00:01]} 37. Re1 {[%clk 0:00:08]}  Qd4 {[%clk 0:00:01]} 38. Qc1 {[%clk 0:00:05]}  Kf8 {[%clk 0:00:02]} 39. Qc8+ {[%clk 0:00:05]}  Kg7 {[%clk 0:00:02]} 40. Qe6 {[%clk 0:00:05]}  Kf8 {[%clk 0:00:03]} 41. d6 {[%clk 0:00:06]}  Kg7 {[%clk 0:00:04]} 42. Qxe7+ {[%clk 0:00:06]}  Kh6 {[%clk 0:00:04]} 43. Qxf6 {[%clk 0:00:05]}  Rh7 {[%clk 0:00:05]} 44. Qg5+ {[%clk 0:00:02]}  Kg7 {[%clk 0:00:05]} 45. Qf6+ {[%clk 0:00:03]}  Kh6 {[%clk 0:00:06]} 46. Ng5 {[%clk 0:00:04]}  Qf4 {[%clk 0:00:05]} 47. Qxf4 {[%clk 0:00:03]}  Kg7 {[%clk 0:00:05]} 48. Qxe5+ {[%clk 0:00:03]} 1-0


[Site "https://www.chess.com"]

[Event "Titled Tuesday Blitz October 5 2021"]
[White "Quintiliano Pinto, Renato R."]
[Black "Girinath, P.D.S."]
[WhiteFideId "2117568"]
[BlackFideId "5000572"]
[WhiteElo "2439"]
[BlackElo "2333"]
[Result "0-1"]
[Round "03"]
[TimeControl "180+1"]
[Date "2021.10.05"]
[WhiteClock "0:01:02"]
[BlackClock "0:01:18"]

1. e4 {[%clk 0:03:00]}  e6 {[%clk 0:02:57]} 2. d4 {[%clk 0:03:00]}  d5 {[%clk 0:02:50]} 3. Nd2 {[%clk 0:03:00]}  c5 {[%clk 0:02:48]} 4. exd5 {[%clk 0:03:00]}  exd5 {[%clk 0:02:48]} 5. Ngf3 {[%clk 0:02:59]}  Nc6 {[%clk 0:02:47]} 6. Bb5 {[%clk 0:02:58]}  Bd6 {[%clk 0:02:46]} 7. dxc5 {[%clk 0:02:58]}  Bxc5 {[%clk 0:02:47]} 8. O-O {[%clk 0:02:57]}  Nf6 {[%clk 0:02:47]} 9. Re1+ {[%clk 0:02:37]}  Be6 {[%clk 0:02:46]} 10. Nb3 {[%clk 0:02:37]}  Bb6 {[%clk 0:02:46]} 11. Nbd4 {[%clk 0:02:29]}  O-O {[%clk 0:02:44]} 12. Bxc6 {[%clk 0:01:48]}  bxc6 {[%clk 0:02:41]} 13. Rxe6 {[%clk 0:01:47]}  fxe6 {[%clk 0:02:13]} 14. Nxe6 {[%clk 0:01:45]}  Qd6 {[%clk 0:02:12]} 15. Nxf8 {[%clk 0:01:43]}  Ng4 {[%clk 0:02:10]} 16. Be3 {[%clk 0:01:27]}  Nxe3 {[%clk 0:01:37]} 17. fxe3 {[%clk 0:01:28]}  Bxe3+ {[%clk 0:01:37]} 18. Kh1 {[%clk 0:01:27]}  Rxf8 {[%clk 0:01:37]} 19. Qd3 {[%clk 0:01:26]}  Bb6 {[%clk 0:01:28]} 20. Re1 {[%clk 0:01:23]}  Qb4 {[%clk 0:01:20]} 21. Qb3 {[%clk 0:01:05]}  Qxe1+ {[%clk 0:01:19]} 22. Nxe1 {[%clk 0:01:02]}  Rf1# {[%clk 0:01:18]} 0-1


[Site "https://www.chess.com"]

[Event "Titled Tuesday Blitz October 5 2021"]
[White "Rozhkov, Viacheslav"]
[Black "Sychev, Klementy"]
[WhiteFideId "4181484"]
[BlackFideId "4114060"]
[WhiteElo "2324"]
[BlackElo "2615"]
[Result "1-0"]
[Round "03"]
[TimeControl "180+1"]
[Date "2021.10.05"]
[WhiteClock "0:00:08"]
[BlackClock "0:00:09"]

1. e4 {[%clk 0:02:16]}  e5 {[%clk 0:02:58]} 2. Nf3 {[%clk 0:02:15]}  Nc6 {[%clk 0:02:59]} 3. d4 {[%clk 0:02:16]}  exd4 {[%clk 0:02:55]} 4. Nxd4 {[%clk 0:02:16]}  Nf6 {[%clk 0:02:52]} 5. Nc3 {[%clk 0:02:16]}  d6 {[%clk 0:02:49]} 6. Bb5 {[%clk 0:02:15]}  Bd7 {[%clk 0:02:48]} 7. Bxc6 {[%clk 0:02:15]}  bxc6 {[%clk 0:02:48]} 8. Qf3 {[%clk 0:02:16]}  Be7 {[%clk 0:02:44]} 9. e5 {[%clk 0:02:16]}  Nd5 {[%clk 0:01:58]} 10. Nxd5 {[%clk 0:02:09]}  cxd5 {[%clk 0:01:55]} 11. Qxd5 {[%clk 0:01:59]}  dxe5 {[%clk 0:01:35]} 12. Nc6 {[%clk 0:01:54]}  Be6 {[%clk 0:01:27]} 13. Qxe5 {[%clk 0:01:34]}  Qd5 {[%clk 0:00:55]} 14. Qxg7 {[%clk 0:01:19]}  Qxc6 {[%clk 0:00:38]} 15. Qxh8+ {[%clk 0:01:18]}  Kd7 {[%clk 0:00:38]} 16. Qd4+ {[%clk 0:01:15]}  Ke8 {[%clk 0:00:38]} 17. Be3 {[%clk 0:00:58]}  Rd8 {[%clk 0:00:36]} 18. Qh8+ {[%clk 0:00:55]}  Kd7 {[%clk 0:00:35]} 19. O-O-O {[%clk 0:00:55]}  Bd6 {[%clk 0:00:33]} 20. Qd4 {[%clk 0:00:44]}  Kc8 {[%clk 0:00:26]} 21. Qxa7 {[%clk 0:00:42]}  Rg8 {[%clk 0:00:26]} 22. g3 {[%clk 0:00:40]}  Rg4 {[%clk 0:00:26]} 23. f4 {[%clk 0:00:36]}  Bf5 {[%clk 0:00:23]} 24. Kb1 {[%clk 0:00:16]}  Bxc2+ {[%clk 0:00:19]} 25. Ka1 {[%clk 0:00:16]}  Bxd1 {[%clk 0:00:19]} 26. Rxd1 {[%clk 0:00:17]}  Rg6 {[%clk 0:00:17]} 27. Rc1 {[%clk 0:00:14]}  Qb5 {[%clk 0:00:18]} 28. Bb6 {[%clk 0:00:09]}  Bxf4 {[%clk 0:00:09]} 29. Rxc7+ {[%clk 0:00:08]} 1-0


[Site "https://www.chess.com"]

[Event "Titled Tuesday Blitz October 5 2021"]
[White "Salimova, Nurgyul"]
[Black "Federzoni, Enzo"]
[WhiteFideId "2915138"]
[BlackFideId "2173301"]
[WhiteElo "2071"]
[BlackElo "1956"]
[Result "1-0"]
[Round "03"]
[TimeControl "180+1"]
[Date "2021.10.05"]
[WhiteClock "0:00:07"]
[BlackClock "0:00:07"]

1. e4 {[%clk 0:03:00]}  c5 {[%clk 0:02:59]} 2. Nf3 {[%clk 0:03:01]}  e6 {[%clk 0:02:58]} 3. d4 {[%clk 0:03:02]}  cxd4 {[%clk 0:02:59]} 4. Nxd4 {[%clk 0:03:02]}  Nf6 {[%clk 0:02:59]} 5. Nc3 {[%clk 0:03:02]}  d6 {[%clk 0:02:59]} 6. g4 {[%clk 0:03:02]}  h6 {[%clk 0:02:59]} 7. Rg1 {[%clk 0:03:02]}  Nc6 {[%clk 0:02:52]} 8. Be3 {[%clk 0:03:02]}  a6 {[%clk 0:02:40]} 9. Qd2 {[%clk 0:02:32]}  Nxd4 {[%clk 0:02:29]} 10. Qxd4 {[%clk 0:02:28]}  e5 {[%clk 0:02:29]} 11. Qd1 {[%clk 0:02:24]}  Be6 {[%clk 0:02:29]} 12. h4 {[%clk 0:02:22]}  g6 {[%clk 0:02:21]} 13. Be2 {[%clk 0:02:18]}  Rc8 {[%clk 0:02:19]} 14. g5 {[%clk 0:02:12]}  hxg5 {[%clk 0:02:08]} 15. hxg5 {[%clk 0:02:13]}  Rxc3 {[%clk 0:02:08]} 16. bxc3 {[%clk 0:02:08]}  Nxe4 {[%clk 0:02:07]} 17. Qd3 {[%clk 0:02:08]}  Qa5 {[%clk 0:01:43]} 18. Bf3 {[%clk 0:01:41]}  d5 {[%clk 0:01:21]} 19. Bxe4 {[%clk 0:01:15]}  dxe4 {[%clk 0:01:22]} 20. Qd2 {[%clk 0:01:05]}  Be7 {[%clk 0:01:17]} 21. Rb1 {[%clk 0:00:45]}  O-O {[%clk 0:01:17]} 22. Rxb7 {[%clk 0:00:22]}  Rd8 {[%clk 0:01:16]} 23. Bb6 {[%clk 0:00:20]}  Qb5 {[%clk 0:00:29]} 24. Bxd8 {[%clk 0:00:19]}  Qxb7 {[%clk 0:00:30]} 25. Bxe7 {[%clk 0:00:20]}  Qxe7 {[%clk 0:00:30]} 26. Qe3 {[%clk 0:00:17]}  Qb7 {[%clk 0:00:28]} 27. Kd2 {[%clk 0:00:17]}  Qd5+ {[%clk 0:00:26]} 28. Kc1 {[%clk 0:00:17]}  Qxa2 {[%clk 0:00:27]} 29. Re1 {[%clk 0:00:16]}  Bd5 {[%clk 0:00:17]} 30. Qc5 {[%clk 0:00:14]}  a5 {[%clk 0:00:11]} 31. Kd2 {[%clk 0:00:14]}  Bb3 {[%clk 0:00:10]} 32. Rc1 {[%clk 0:00:12]}  a4 {[%clk 0:00:10]} 33. Qxe5 {[%clk 0:00:10]}  Bd5 {[%clk 0:00:10]} 34. Ke3 {[%clk 0:00:09]}  Qc4 {[%clk 0:00:09]} 35. Rh1 {[%clk 0:00:09]}  Qc5+ {[%clk 0:00:07]} 36. Qd4 {[%clk 0:00:07]}  Qxd4+ {[%clk 0:00:06]} 37. Kxd4 {[%clk 0:00:07]}  a3 {[%clk 0:00:07]} 38. Kxd5 {[%clk 0:00:07]} 1-0


[Site "https://www.chess.com"]

[Event "Titled Tuesday Blitz October 5 2021"]
[White "Sarana, Alexey"]
[Black "Ivanisevic, Ivan"]
[WhiteFideId "24133795"]
[BlackFideId "912417"]
[WhiteElo "2671"]
[BlackElo "2499"]
[Result "1-0"]
[Round "03"]
[TimeControl "180+1"]
[Date "2021.10.05"]
[WhiteClock "0:00:29"]
[BlackClock "0:00:06"]

1. e4 {[%clk 0:02:51]}  c5 {[%clk 0:02:59]} 2. Nf3 {[%clk 0:02:51]}  Nc6 {[%clk 0:03:00]} 3. c3 {[%clk 0:02:51]}  d5 {[%clk 0:02:58]} 4. exd5 {[%clk 0:02:50]}  Qxd5 {[%clk 0:02:59]} 5. d4 {[%clk 0:02:50]}  cxd4 {[%clk 0:03:00]} 6. cxd4 {[%clk 0:02:49]}  e5 {[%clk 0:03:00]} 7. Nc3 {[%clk 0:02:48]}  Bb4 {[%clk 0:03:01]} 8. Bd2 {[%clk 0:02:41]}  Bxc3 {[%clk 0:03:01]} 9. Bxc3 {[%clk 0:02:42]}  e4 {[%clk 0:03:01]} 10. Nd2 {[%clk 0:02:42]}  Nf6 {[%clk 0:02:59]} 11. Bc4 {[%clk 0:02:42]}  Qg5 {[%clk 0:02:59]} 12. Qe2 {[%clk 0:02:34]}  O-O {[%clk 0:02:56]} 13. O-O-O {[%clk 0:02:32]}  Nd5 {[%clk 0:02:47]} 14. Qxe4 {[%clk 0:02:11]}  Nxc3 {[%clk 0:02:45]} 15. bxc3 {[%clk 0:02:12]}  Bf5 {[%clk 0:02:41]} 16. Qf3 {[%clk 0:02:02]}  Rac8 {[%clk 0:02:34]} 17. Kb2 {[%clk 0:01:58]}  b5 {[%clk 0:02:30]} 18. h4 {[%clk 0:01:53]}  Qg6 {[%clk 0:02:23]} 19. h5 {[%clk 0:01:45]}  Qg5 {[%clk 0:02:22]} 20. Bd3 {[%clk 0:01:45]}  Bxd3 {[%clk 0:02:21]} 21. Qxd3 {[%clk 0:01:45]}  b4 {[%clk 0:02:21]} 22. c4 {[%clk 0:01:44]}  Rfd8 {[%clk 0:02:14]} 23. Nf3 {[%clk 0:01:38]}  Qa5 {[%clk 0:02:09]} 24. d5 {[%clk 0:01:28]}  b3 {[%clk 0:02:00]} 25. a3 {[%clk 0:01:29]}  h6 {[%clk 0:01:43]} 26. Qc3 {[%clk 0:01:18]}  Qxc3+ {[%clk 0:01:39]} 27. Kxc3 {[%clk 0:01:19]}  Na5 {[%clk 0:01:39]} 28. Rd4 {[%clk 0:01:19]}  Rd6 {[%clk 0:01:26]} 29. Nd2 {[%clk 0:01:16]}  Rb6 {[%clk 0:01:23]} 30. Rb1 {[%clk 0:01:14]}  Rcb8 {[%clk 0:00:53]} 31. d6 {[%clk 0:01:11]}  b2 {[%clk 0:00:49]} 32. Rd5 {[%clk 0:00:54]}  Nb7 {[%clk 0:00:47]} 33. c5 {[%clk 0:00:44]}  Rb5 {[%clk 0:00:47]} 34. Ne4 {[%clk 0:00:39]}  Na5 {[%clk 0:00:45]} 35. d7 {[%clk 0:00:38]}  Nc6 {[%clk 0:00:36]} 36. Rd6 {[%clk 0:00:33]}  Nd8 {[%clk 0:00:34]} 37. c6 {[%clk 0:00:30]}  Ne6 {[%clk 0:00:07]} 38. Rxe6 {[%clk 0:00:29]}  fxe6 {[%clk 0:00:06]} 39. c7 {[%clk 0:00:29]} 1-0


[Site "https://www.chess.com"]

[Event "Titled Tuesday Blitz October 5 2021"]
[White "Seo, Jung Min"]
[Black "Sjugirov, Sanan"]
[WhiteFideId "1734687"]
[BlackFideId "4189302"]
[WhiteElo "2486"]
[BlackElo "2654"]
[Result "1/2-1/2"]
[Round "03"]
[TimeControl "180+1"]
[Date "2021.10.05"]
[WhiteClock "0:00:10"]
[BlackClock "0:00:06"]

1. c4 {[%clk 0:03:00]}  e5 {[%clk 0:02:59]} 2. Nc3 {[%clk 0:03:01]}  Nf6 {[%clk 0:02:58]} 3. Nf3 {[%clk 0:03:00]}  Nc6 {[%clk 0:02:58]} 4. g3 {[%clk 0:03:00]}  Bb4 {[%clk 0:02:58]} 5. Bg2 {[%clk 0:02:59]}  O-O {[%clk 0:02:55]} 6. O-O {[%clk 0:02:59]}  e4 {[%clk 0:02:47]} 7. Ng5 {[%clk 0:02:58]}  Bxc3 {[%clk 0:02:45]} 8. bxc3 {[%clk 0:02:58]}  Re8 {[%clk 0:02:38]} 9. f3 {[%clk 0:02:50]}  exf3 {[%clk 0:02:38]} 10. Nxf3 {[%clk 0:02:50]}  d5 {[%clk 0:02:36]} 11. d4 {[%clk 0:02:50]}  h6 {[%clk 0:02:36]} 12. cxd5 {[%clk 0:02:05]}  Nxd5 {[%clk 0:02:27]} 13. Bd2 {[%clk 0:02:05]}  Bf5 {[%clk 0:02:16]} 14. c4 {[%clk 0:01:54]}  Nb6 {[%clk 0:02:03]} 15. d5 {[%clk 0:01:51]}  Ne7 {[%clk 0:01:57]} 16. Rc1 {[%clk 0:01:45]}  Be4 {[%clk 0:01:55]} 17. Re1 {[%clk 0:01:38]}  Nf5 {[%clk 0:01:52]} 18. Qb3 {[%clk 0:01:37]}  c6 {[%clk 0:01:46]} 19. Ba5 {[%clk 0:01:33]}  Qf6 {[%clk 0:01:33]} 20. Bxb6 {[%clk 0:01:23]}  axb6 {[%clk 0:01:34]} 21. Qxb6 {[%clk 0:01:23]}  Rxa2 {[%clk 0:01:31]} 22. Qb3 {[%clk 0:01:01]}  Rb2 {[%clk 0:01:28]} 23. Qc3 {[%clk 0:00:58]}  Qxc3 {[%clk 0:01:26]} 24. Rxc3 {[%clk 0:00:57]}  cxd5 {[%clk 0:01:13]} 25. cxd5 {[%clk 0:00:57]}  Bxd5 {[%clk 0:01:13]} 26. Rc5 {[%clk 0:00:57]}  Bxf3 {[%clk 0:01:07]} 27. Bxf3 {[%clk 0:00:57]}  Nd4 {[%clk 0:01:07]} 28. Kf2 {[%clk 0:00:54]}  Nxf3 {[%clk 0:01:03]} 29. Kxf3 {[%clk 0:00:55]}  b5 {[%clk 0:00:52]} 30. e4 {[%clk 0:00:45]}  f6 {[%clk 0:00:42]} 31. h4 {[%clk 0:00:42]}  Re7 {[%clk 0:00:38]} 32. e5 {[%clk 0:00:39]}  fxe5 {[%clk 0:00:25]} 33. Rexe5 {[%clk 0:00:38]}  Rxe5 {[%clk 0:00:25]} 34. Rxe5 {[%clk 0:00:38]}  b4 {[%clk 0:00:26]} 35. Rb5 {[%clk 0:00:38]}  b3 {[%clk 0:00:26]} 36. Rb7 {[%clk 0:00:36]}  Rb1 {[%clk 0:00:22]} 37. Kg4 {[%clk 0:00:33]}  b2 {[%clk 0:00:14]} 38. h5 {[%clk 0:00:30]}  Kf8 {[%clk 0:00:13]} 39. Rb8+ {[%clk 0:00:20]}  Ke7 {[%clk 0:00:13]} 40. Rb7+ {[%clk 0:00:20]}  Kd6 {[%clk 0:00:13]} 41. Rb6+ {[%clk 0:00:20]}  Ke5 {[%clk 0:00:13]} 42. Rb5+ {[%clk 0:00:17]}  Kd4 {[%clk 0:00:13]} 43. Rb8 {[%clk 0:00:16]}  Kc3 {[%clk 0:00:08]} 44. Rc8+ {[%clk 0:00:16]}  Kd3 {[%clk 0:00:09]} 45. Rd8+ {[%clk 0:00:17]}  Ke3 {[%clk 0:00:08]} 46. Re8+ {[%clk 0:00:15]}  Kf2 {[%clk 0:00:08]} 47. Rf8+ {[%clk 0:00:15]}  Kg2 {[%clk 0:00:08]} 48. Rb8 {[%clk 0:00:15]}  Kf1 {[%clk 0:00:04]} 49. Rf8+ {[%clk 0:00:14]}  Ke2 {[%clk 0:00:05]} 50. Re8+ {[%clk 0:00:14]}  Kd3 {[%clk 0:00:05]} 51. Rb8 {[%clk 0:00:13]}  Kc4 {[%clk 0:00:05]} 52. Rc8+ {[%clk 0:00:13]}  Kd5 {[%clk 0:00:06]} 53. Rb8 {[%clk 0:00:12]}  Ke6 {[%clk 0:00:06]} 54. Rb6+ {[%clk 0:00:12]}  Ke7 {[%clk 0:00:04]} 55. Rb7+ {[%clk 0:00:12]}  Kd6 {[%clk 0:00:04]} 56. Rb6+ {[%clk 0:00:12]}  Kc5 {[%clk 0:00:05]} 57. Rb8 {[%clk 0:00:12]}  Kc4 {[%clk 0:00:03]} 58. Rc8+ {[%clk 0:00:13]}  Kd3 {[%clk 0:00:02]} 59. Rd8+ {[%clk 0:00:12]}  Kc3 {[%clk 0:00:02]} 60. Rc8+ {[%clk 0:00:12]}  Kd2 {[%clk 0:00:03]} 61. Rd8+ {[%clk 0:00:12]}  Ke3 {[%clk 0:00:04]} 62. Re8+ {[%clk 0:00:12]}  Kf2 {[%clk 0:00:04]} 63. Rf8+ {[%clk 0:00:12]}  Kg1 {[%clk 0:00:04]} 64. Rb8 {[%clk 0:00:12]}  Kg2 {[%clk 0:00:04]} 65. Rb7 {[%clk 0:00:11]}  Kh2 {[%clk 0:00:04]} 66. Rb8 {[%clk 0:00:11]}  Kg1 {[%clk 0:00:05]} 67. Rb7 {[%clk 0:00:11]}  Kf2 {[%clk 0:00:04]} 68. Rf7+ {[%clk 0:00:10]}  Ke2 {[%clk 0:00:05]} 69. Re7+ {[%clk 0:00:10]}  Kd3 {[%clk 0:00:05]} 70. Rb7 {[%clk 0:00:09]}  Kc3 {[%clk 0:00:05]} 71. Rc7+ {[%clk 0:00:09]}  Kd3 {[%clk 0:00:05]} 72. Rd7+ {[%clk 0:00:10]}  Kc3 {[%clk 0:00:05]} 73. Rc7+ {[%clk 0:00:10]}  Kd3 {[%clk 0:00:06]} 74. Rd7+ {[%clk 0:00:10]}  Kc3 {[%clk 0:00:06]} 75. Rc7+ {[%clk 0:00:10]} 1/2-1/2


[Site "https://www.chess.com"]